[Event "EYCC Open-U12 2019"]
[Site "Bratislava"]
[Date "2019.08.08"]
[Round "7.20"]
[White "Shinkarov, Artem"]
[Black "Kamilov, Dmitry"]
[Result "1-0"]
[ECO "A53"]
[WhiteElo "1798"]
[BlackElo "1990"]
[Annotator "NA"]
[PlyCount "129"]
[EventDate "2019.08.02"]
[EventType "swiss"]
[EventCountry "SVK"]
[SourceTitle "playchess.com"]
[Source "ChessBase"]
[SourceQuality "1"]
[TimeControl "40/5400+30:1800+30"]

1. d4 {[%emt 0:00:00]} Nf6 {[%emt 0:00:00]} 2. c4 {[%emt 0:00:00]} d6 {[%emt 0:00:00]} 3. Nc3 {[%emt 0:00:00]} e5 {[%emt 0:00:00]} 4. dxe5 {[%emt 0:01:23]} dxe5 {[%emt 0:00:00]} 5. Qxd8+ {[%emt 0:00:05]} Kxd8 {[%emt 0:00:00]} 6. Nf3 {[%emt 0:00:08]} Nbd7 {[%emt 0:00:01]} 7. Ng5 {[%emt 0:01:41]} Ke7 {[%emt 0:00:13]} 8. b3 {[%emt 0:04:16]} h6 {[%emt 0:05:19]} 9. Nf3 {[%emt 0:04:01]} c6 {[%emt 0:00:44]} 10. Bb2 {[%emt 0:00:35]} Ke6 {[%emt 0:11:55]} 11. g3 {[%emt 0:00:18]} Bd6 {[%emt 0:01:44]} 12. Rd1 {[%emt 0:08:20]} g5 {[%emt 0:07:32]} 13. Bg2 {[%emt 0:07:52]} Re8 {[%emt 0:18:36]} 14. Nd2 {[%emt 0:19:11]} Bf8 {[%emt 0:06:31]} 15. Nf1 {[%emt 0:00:32]} Bc5 {[%emt 0:03:04]} 16. Ne3 {[%emt 0:06:28]} g4 {[%emt 0:04:08]} 17. h3 {[%emt 0:11:59]} h5 {[%emt 0:03:02]} 18. h4 {[%emt 0:01:48]} Nb6 {[%emt 0:02:08]} 19. O-O {[%emt 0:01:47]} Ke7 {[%emt 0:01:03]} 20. Ne4 {[%emt 0:01:07]} Nxe4 {[%emt 0:00:28]} 21. Bxe4 {[%emt 0:00:06]} Kf8 {[%emt 0:01:11]} 22. Nf5 {[%emt 0:07:24]} Bxf5 {[%emt 0:03:18]} 23. Bxf5 {[%emt 0:00:01]} Rad8 {[%emt 0:00:25]} 24. a4 {[%emt 0:03:04]} Na8 {[%emt 0:05:08]} 25. e3 {[%emt 0:01:26]} Bd6 {[%emt 0:04:24]} 26. Rd2 {[%emt 0:00:58]} Ke7 {[%emt 0:03:25]} 27. Rfd1 {[%emt 0:00:27]} Nc7 {[%emt 0:01:35]} 28. c5 {[%emt 0:01:23]} Bxc5 {[%emt 0:00:06]} 29. Bxe5 {[%emt 0:04:37]} Rxd2 {[%emt 0:01:23]} 30. Rxd2 {[%emt 0:00:07]} Ne6 {[%emt 0:00:07]} 31. Bc3 {[%emt 0:01:33]} Rd8 {[%emt 0:00:40]} 32. Rxd8 {[%emt 0:00:49]} Kxd8 {[%emt 0:00:27]} 33. Kf1 {[%emt 0:01:01]} Nc7 {[%emt 0:01:53]} 34. Ke2 {[%emt 0:00:54]} Nd5 {[%emt 0:00:55]} 35. Bd2 {[%emt 0:02:15]} Bb4 {[%emt 0:05:01]} 36. Bxb4 {[%emt 0:01:49]} Nxb4 {[%emt 0:00:05]} 37. Kd2 {[%emt 0:00:59]} a5 {[%emt 0:00:16]} 38. Kc3 {[%emt 0:00:46]} b6 {[%emt 0:01:15]} 39. Be4 {[%emt 0:00:46]} Kd7 {[%emt 0:00:09]} 40. f3 {[%emt 0:00:00]} gxf3 {[%emt 0:00:00]} 41. Bxf3 {[%emt 0:01:23]} Nd5+ {[%emt 0:06:24]} 42. Kd4 {[%emt 0:00:29]} Nf6 {[%emt 0:01:29]} 43. Ke5 {[%emt 0:00:25]} Ke7 {[%emt 0:00:06]} 44. Bxc6 {[%emt 0:00:10]} Ng4+ {[%emt 0:00:25]} 45. Kf4 {[%emt 0:00:30]} Kf6 {[%emt 0:00:12]} 46. Bf3 {[%emt 0:00:33]} Nf2 {[%emt 0:00:23]} 47. Be2 {[%emt 0:02:33]} Nh3+ {[%emt 0:00:05]} 48. Ke4 {[%emt 0:00:34]} Nf2+ {[%emt 0:00:46]} 49. Kd4 {[%emt 0:04:05]} Nh1 {[%emt 0:00:27]} 50. Bxh5 {[%emt 0:00:42]} Nxg3 {[%emt 0:00:04]} 51. Bg4 {[%emt 0:00:35]} Nf1 {[%emt 0:00:16]} 52. e4 {[%emt 0:03:27]} Nd2 {[%emt 0:00:34]} 53. Bd1 {[%emt 0:00:11]} Ke6 {[%emt 0:00:45]} 54. Ke3 {[%emt 0:00:45]} Nf1+ {[%emt 0:00:34]} 55. Kf4 {[%emt 0:02:28]} Nd2 {[%emt 0:01:05]} 56. Be2 {[%emt 0:00:35]} Kf6 {[%emt 0:00:35]} 57. Bc4 {[%emt 0:00:46]} Kg6 {[%emt 0:00:15]} 58. h5+ {[%emt 0:01:06]} Kxh5 {[%emt 0:00:11]} 59. Bxf7+ {[%emt 0:00:05]} Kh6 {[%emt 0:00:04]} 60. Bd5 {[%emt 0:00:42]} Kg7 {[%emt 0:00:17]} 61. Ke5 {[%emt 0:00:18]} Kf8 {[%emt 0:00:08]} 62. Kd6 {[%emt 0:00:06]} Ke8 {[%emt 0:00:13]} 63. e5 {[%emt 0:00:15]} Nf1 {[%emt 0:00:23]} 64. e6 {[%emt 0:00:05]} Ne3 {[%emt 0:00:05]} 65. Bc6+ {[%emt 0:00:06]} 1-0

[Event "EYCC Open-U12 2019"]
[Site "Bratislava"]
[Date "2019.08.08"]
[Round "7.21"]
[White "Andreev, Konstantin"]
[Black "Pingin, Artem"]
[Result "0-1"]
[ECO "E09"]
[WhiteElo "2271"]
[BlackElo "2155"]
[Annotator "NA"]
[PlyCount "50"]
[EventDate "2019.08.02"]
[EventType "swiss"]
[EventCountry "SVK"]
[SourceTitle "playchess.com"]
[Source "ChessBase"]
[SourceQuality "1"]
[TimeControl "40/5400+30:1800+30"]

1. d4 Nf6 2. Nf3 e6 3. c4 d5 4. g3 Be7 5. Bg2 O-O 6. Nbd2 Nbd7 7. O-O c6 8. Qc2 b6 9. e4 dxc4 10. Nxc4 Bb7 11. e5 Nd5 12. h4 h6 13. Ne3 c5 14. Ng4 cxd4 15. Nxd4 h5 16. Nxe6 fxe6 17. Nh6+ Kh8 18. Nf7+ Rxf7 19. Qg6 Rf5 20. Qxe6 Rxe5 21. Qg6 Qe8 22. Qd3 Nb4 23. Qb3 Bxg2 24. Kxg2 Qg8 25. Qa4 Qd5+ 0-1

[Event "EYCC Open-U12 2019"]
[Site "Bratislava"]
[Date "2019.08.08"]
[Round "7.22"]
[White "Magold, Filip"]
[Black "Dudarev, Vladislav"]
[Result "1-0"]
[ECO "B77"]
[WhiteElo "1865"]
[BlackElo "2137"]
[Annotator "NA"]
[PlyCount "153"]
[EventDate "2019.08.02"]
[EventType "swiss"]
[EventCountry "SVK"]
[SourceTitle "playchess.com"]
[Source "ChessBase"]
[SourceQuality "1"]
[TimeControl "40/5400+30:1800+30"]

1. e4 {[%emt 0:00:00]} c5 {[%emt 0:00:00]} 2. Nf3 {[%emt 0:00:00]} d6 {[%emt 0:00:00]} 3. d4 {[%emt 0:00:00]} cxd4 {[%emt 0:00:00]} 4. Nxd4 {[%emt 0:00:00]} Nf6 {[%emt 0:00:00]} 5. Nc3 {[%emt 0:00:00]} g6 {[%emt 0:00:00]} 6. Be3 {[%emt 0:00:09]} Bg7 {[%emt 0:00:00]} 7. f3 {[%emt 0:00:33]} O-O {[%emt 0:00:12]} 8. Bc4 {[%emt 0:00:24]} Nc6 {[%emt 0:00:06]} 9. Qd2 {[%emt 0:00:53]} Bd7 {[%emt 0:00:07]} 10. h4 {[%emt 0:02:04]} h5 {[%emt 0:00:10]} 11. O-O-O {[%emt 0:00:11]} Rc8 {[%emt 0:00:18]} 12. Bb3 {[%emt 0:00:12]} Ne5 {[%emt 0:00:50]} 13. Bh6 {[%emt 0:10:48]} Nc4 {[%emt 0:00:53]} 14. Bxc4 {[%emt 0:00:18]} Rxc4 {[%emt 0:00:02]} 15. Bxg7 {[%emt 0:00:17]} Kxg7 {[%emt 0:00:05]} 16. g4 {[%emt 0:00:24]} hxg4 {[%emt 0:00:31]} 17. h5 {[%emt 0:00:27]} Rh8 {[%emt 0:00:30]} 18. hxg6 {[%emt 0:01:31]} fxg6 {[%emt 0:02:01]} 19. f4 {[%emt 0:15:53]} Rc5 {[%emt 0:22:24]} 20. e5 {[%emt 0:15:11]} dxe5 {[%emt 0:04:29]} 21. Nb3 {[%emt 0:02:02]} Rxh1 {[%emt 0:25:53]} 22. Rxh1 {[%emt 0:00:04]} Qc7 {[%emt 0:06:16]} 23. Nxc5 {[%emt 0:00:21]} Qxc5 {[%emt 0:00:04]} 24. fxe5 {[%emt 0:00:35]} Qxe5 {[%emt 0:00:02]} 25. Re1 {[%emt 0:04:41]} Qd6 {[%emt 0:04:57]} 26. Qe3 {[%emt 0:02:43]} Bc6 {[%emt 0:08:11]} 27. Qxe7+ {[%emt 0:18:38]} Qxe7 28. Rxe7+ Kh6 {[%emt 0:01:21]} 29. Kd2 {[%emt 0:00:59]} g3 {[%emt 0:00:54]} 30. Ne2 {[%emt 0:08:16]} g2 {[%emt 0:02:33]} 31. c4 {[%emt 0:05:56]} Ne4+ {[%emt 0:03:06]} 32. Ke1 {[%emt 0:02:21]} a6 {[%emt 0:01:55]} 33. Re5 {[%emt 0:05:22]} g5 {[%emt 0:02:07]} 34. b4 {[%emt 0:00:39]} Nc3 {[%emt 0:02:11]} 35. Kf2 {[%emt 0:00:47]} Nd1+ {[%emt 0:04:45]} 36. Kg1 {[%emt 0:00:22]} Bf3 {[%emt 0:02:42]} 37. Nd4 {[%emt 0:00:39]} g4 {[%emt 0:00:17]} 38. b5 {[%emt 0:01:21]} axb5 {[%emt 0:00:43]} 39. cxb5 {[%emt 0:00:01]} Kg6 {[%emt 0:00:58]} 40. a4 {[%emt 0:00:30]} Nc3 {[%emt 0:00:40]} 41. a5 {[%emt 0:00:39]} Kf6 {[%emt 0:00:32]} 42. Rc5 {[%emt 0:00:47]} Ne4 {[%emt 0:00:44]} 43. Rf5+ {[%emt 0:00:17]} Kg6 {[%emt 0:00:16]} 44. Nxf3 {[%emt 0:21:15]} Kxf5 {[%emt 0:00:31]} 45. Nh4+ {[%emt 0:00:08]} Kg5 {[%emt 0:01:32]} 46. a6 {[%emt 0:00:15]} bxa6 {[%emt 0:00:10]} 47. bxa6 {[%emt 0:00:04]} Kxh4 {[%emt 0:00:22]} 48. a7 {[%emt 0:00:45]} Kh3 {[%emt 0:02:42]} 49. a8=Q {[%emt 0:00:04]} g3 {[%emt 0:00:09]} 50. Qh8+ {[%emt 0:00:38]} Kg4 {[%emt 0:00:08]} 51. Kxg2 {[%emt 0:00:00]} Kf4 {[%emt 0:01:25]} 52. Qh4+ {[%emt 0:00:02]} Ke3 {[%emt 0:00:03]} 53. Qg4 {[%emt 0:00:08]} Kd3 {[%emt 0:00:33]} 54. Qf4 {[%emt 0:00:03]} Nd2 {[%emt 0:00:25]} 55. Qxg3+ {[%emt 0:00:08]} Kd4 {[%emt 0:00:05]} 56. Qf4+ {[%emt 0:00:10]} Kd3 {[%emt 0:00:07]} 57. Kf2 {[%emt 0:00:07]} Ne4+ {[%emt 0:00:18]} 58. Ke1 {[%emt 0:00:05]} Nc3 {[%emt 0:00:25]} 59. Qb4 {[%emt 0:00:23]} Ne4 {[%emt 0:00:26]} 60. Kf1 {[%emt 0:00:53]} Ke3 {[%emt 0:00:49]} 61. Kg2 {[%emt 0:00:09]} Kd3 {[%emt 0:00:26]} 62. Kf3 {[%emt 0:00:24]} Nd2+ {[%emt 0:00:09]} 63. Kf4 {[%emt 0:00:08]} Nc4 {[%emt 0:00:23]} 64. Qc5 {[%emt 0:00:16]} Nd2 {[%emt 0:00:33]} 65. Qe3+ {[%emt 0:00:07]} Kc2 {[%emt 0:00:02]} 66. Qa3 {[%emt 0:00:09]} Nc4 {[%emt 0:00:06]} 67. Qh3 {[%emt 0:00:12]} Nd2 {[%emt 0:00:20]} 68. Ke3 {[%emt 0:00:16]} Nb3 {[%emt 0:00:30]} 69. Ke4 {[%emt 0:00:15]} Nd2+ {[%emt 0:00:35]} 70. Kd4 {[%emt 0:00:05]} Nb3+ {[%emt 0:00:05]} 71. Kc4 {[%emt 0:00:04]} Nd2+ {[%emt 0:00:04]} 72. Kb4 {[%emt 0:00:03]} Ne4 {[%emt 0:00:37]} 73. Qe3 {[%emt 0:00:10]} Nd2 {[%emt 0:00:05]} 74. Qe2 {[%emt 0:00:04]} Kc1 {[%emt 0:00:12]} 75. Kc3 {[%emt 0:00:04]} Nb1+ {[%emt 0:00:08]} 76. Kd3 {[%emt 0:00:05]} Na3 {[%emt 0:00:14]} 77. Qa2 {[%emt 0:00:06]} 1-0

[Event "EYCC Open-U12 2019"]
[Site "Bratislava"]
[Date "2019.08.08"]
[Round "7.23"]
[White "Guia, Artur Solovyov Eloy"]
[Black "Celik, Hasan Huseyin"]
[Result "1-0"]
[ECO "A01"]
[WhiteElo "1790"]
[BlackElo "1903"]
[Annotator "NA"]
[PlyCount "79"]
[EventDate "2019.08.02"]
[EventType "swiss"]
[EventCountry "SVK"]
[SourceTitle "playchess.com"]
[Source "ChessBase"]
[SourceQuality "1"]
[TimeControl "40/5400+30:1800+30"]

1. b3 {[%emt 0:00:00]} e5 {[%emt 0:00:00]} 2. Bb2 {[%emt 0:00:00]} Nc6 {[%emt 0:00:00]} 3. Nf3 {[%emt 0:00:00]} e4 {[%emt 0:00:59]} 4. Nd4 {[%emt 0:00:00]} Nf6 {[%emt 0:00:51]} 5. e3 {[%emt 0:00:41]} d5 {[%emt 0:01:14]} 6. Nxc6 {[%emt 0:00:50]} bxc6 {[%emt 0:00:07]} 7. d3 {[%emt 0:01:45]} Bd6 {[%emt 0:00:25]} 8. Nd2 {[%emt 0:00:42]} O-O {[%emt 0:03:30]} 9. Be2 {[%emt 0:02:30]} Re8 {[%emt 0:00:58]} 10. dxe4 {[%emt 0:02:01]} Nxe4 {[%emt 0:01:05]} 11. Nxe4 dxe4 {[%emt 0:00:11]} 12. Qd4 {[%emt 0:10:17]} Qg5 {[%emt 0:00:15]} 13. O-O-O {[%emt 0:04:44]} Be5 {[%emt 0:02:09]} 14. Qc4 {[%emt 0:07:10]} Bxb2+ {[%emt 0:04:37]} 15. Kxb2 {[%emt 0:00:08]} Bb7 {[%emt 0:00:12]} 16. Rd7 {[%emt 0:06:19]} Qf5 {[%emt 0:00:47]} 17. Rhd1 {[%emt 0:01:43]} a5 {[%emt 0:16:22]} 18. g4 {[%emt 0:03:28]} Qf6+ {[%emt 0:01:51]} 19. Qd4 {[%emt 0:00:50]} Qg6 {[%emt 0:04:03]} 20. Bc4 {[%emt 0:00:47]} Rf8 {[%emt 0:00:09]} 21. Rxf7 {[%emt 0:01:29]} Kh8 {[%emt 0:01:15]} 22. Rxc7 {[%emt 0:05:19]} Ba6 {[%emt 0:02:40]} 23. Bxa6 {[%emt 0:01:06]} Rxa6 {[%emt 0:01:00]} 24. Qd6 {[%emt 0:01:41]} Qe8 {[%emt 0:03:30]} 25. Qe7 {[%emt 0:00:42]} Qxe7 {[%emt 0:00:46]} 26. Rxe7 {[%emt 0:00:06]} a4 {[%emt 0:00:49]} 27. Rdd7 {[%emt 0:00:54]} a3+ {[%emt 0:00:34]} 28. Kc3 {[%emt 0:00:10]} h6 {[%emt 0:00:30]} 29. Rxg7 {[%emt 0:00:14]} Rxf2 {[%emt 0:00:12]} 30. Rge7 {[%emt 0:00:12]} Ra8 {[%emt 0:00:14]} 31. Rxe4 {[%emt 0:00:13]} Rxh2 {[%emt 0:03:03]} 32. Ra4 {[%emt 0:08:08]} Re8 {[%emt 0:01:57]} 33. Rxa3 {[%emt 0:02:27]} Rxe3+ {[%emt 0:00:47]} 34. Kb2 {[%emt 0:01:07]} Re8 {[%emt 0:00:49]} 35. Ra6 {[%emt 0:00:13]} Rc8 {[%emt 0:00:49]} 36. Rd6 {[%emt 0:00:52]} Kg7 {[%emt 0:02:13]} 37. Raxc6 {[%emt 0:00:30]} Rxc6 {[%emt 0:02:09]} 38. Rxc6 {[%emt 0:00:05]} Rg2 {[%emt 0:00:04]} 39. Rc4 {[%emt 0:00:36]} Kg6 {[%emt 0:00:34]} 40. a4 {[%emt 0:00:00]} 1-0

[Event "EYCC Open-U12 2019"]
[Site "Bratislava"]
[Date "2019.08.08"]
[Round "7.24"]
[White "Macias Pino, Diego"]
[Black "De Reese, Elias"]
[Result "1-0"]
[ECO "B00"]
[WhiteElo "2150"]
[BlackElo "1850"]
[Annotator "NA"]
[PlyCount "121"]
[EventDate "2019.08.02"]
[EventType "swiss"]
[EventCountry "SVK"]
[SourceTitle "playchess.com"]
[Source "ChessBase"]
[SourceQuality "1"]
[TimeControl "40/5400+30:1800+30"]

1. e4 {[%emt 0:00:00]} d6 {[%emt 0:00:00]} 2. Nc3 {[%emt 0:00:00]} Nf6 {[%emt 0:00:00]} 3. f4 {[%emt 0:00:00]} e5 {[%emt 0:00:19]} 4. Nf3 {[%emt 0:00:00]} Nbd7 {[%emt 0:00:05]} 5. d4 {[%emt 0:00:08]} exd4 {[%emt 0:00:09]} 6. Qxd4 {[%emt 0:00:03]} c6 {[%emt 0:00:10]} 7. Be3 {[%emt 0:00:05]} d5 {[%emt 0:00:11]} 8. e5 {[%emt 0:02:24]} Ng4 {[%emt 0:00:09]} 9. Bg1 {[%emt 0:00:16]} Bc5 {[%emt 0:00:45]} 10. Qd2 {[%emt 0:00:58]} Bxg1 {[%emt 0:01:20]} 11. Rxg1 {[%emt 0:00:34]} Qb6 {[%emt 0:00:14]} 12. Na4 {[%emt 0:02:54]} Qe3+ {[%emt 0:01:04]} 13. Qxe3 {[%emt 0:00:57]} Nxe3 {[%emt 0:00:09]} 14. Bd3 {[%emt 0:00:01]} O-O {[%emt 0:00:30]} 15. Kd2 {[%emt 0:16:20]} Nc4+ {[%emt 0:00:11]} 16. Bxc4 dxc4 {[%emt 0:00:24]} 17. Nc3 {[%emt 0:04:07]} Nc5 {[%emt 0:02:18]} 18. Ke3 {[%emt 0:01:27]} Rd8 {[%emt 0:08:51]} 19. h3 {[%emt 0:06:16]} Be6 {[%emt 0:03:31]} 20. Nd4 {[%emt 0:03:51]} Kf8 {[%emt 0:05:00]} 21. g4 {[%emt 0:09:37]} Bd5 {[%emt 0:04:39]} 22. Nf5 {[%emt 0:05:51]} f6 {[%emt 0:07:49]} 23. Nd6 {[%emt 0:17:55]} Ke7 {[%emt 0:05:44]} 24. Nxd5+ {[%emt 0:09:57]} cxd5 {[%emt 0:00:29]} 25. Rad1 {[%emt 0:00:18]} fxe5 {[%emt 0:04:41]} 26. fxe5 {[%emt 0:00:01]} Ke6 {[%emt 0:01:13]} 27. Kd4 {[%emt 0:00:02]} b6 {[%emt 0:02:27]} 28. Rgf1 {[%emt 0:01:16]} Rf8 {[%emt 0:04:41]} 29. Nb5 {[%emt 0:03:20]} Na6 {[%emt 0:06:33]} 30. a3 {[%emt 0:01:34]} Rfc8 {[%emt 0:05:11]} 31. Rf5 {[%emt 0:02:26]} Nb8 {[%emt 0:01:34]} 32. Rdf1 {[%emt 0:02:15]} a6 {[%emt 0:05:24]} 33. Nd6 {[%emt 0:00:01]} Nc6+ {[%emt 0:00:31]} 34. Kc3 {[%emt 0:00:02]} Rc7 {[%emt 0:02:12]} 35. Nf7 {[%emt 0:00:37]} d4+ {[%emt 0:03:52]} 36. Kd2 {[%emt 0:00:21]} Ne7 {[%emt 0:03:06]} 37. Ng5+ {[%emt 0:00:32]} Kd5 {[%emt 0:01:29]} 38. Rf7 {[%emt 0:00:43]} Kxe5 {[%emt 0:13:50]} 39. Re1+ {[%emt 0:00:31]} Kd6 {[%emt 0:01:00]} 40. Re6+ {[%emt 0:00:00]} Kd5 {[%emt 0:00:00]} 41. Rexe7 {[%emt 0:00:11]} Rxe7 {[%emt 0:01:24]} 42. Rxe7 {[%emt 0:00:02]} Rf8 {[%emt 0:00:43]} 43. Ke2 {[%emt 0:04:34]} d3+ {[%emt 0:03:52]} 44. cxd3 {[%emt 0:01:49]} cxd3+ {[%emt 0:00:18]} 45. Kxd3 {[%emt 0:00:51]} h6 {[%emt 0:00:54]} 46. Ne4 {[%emt 0:01:08]} Rf3+ {[%emt 0:00:31]} 47. Kc2 {[%emt 0:00:04]} Rxh3 {[%emt 0:00:36]} 48. Nc3+ {[%emt 0:00:05]} Kd6 {[%emt 0:00:27]} 49. Rxg7 {[%emt 0:00:10]} Rh2+ {[%emt 0:00:13]} 50. Kb3 {[%emt 0:00:15]} Ke5 {[%emt 0:00:15]} 51. Rg6 {[%emt 0:02:56]} Kf4 {[%emt 0:00:23]} 52. Rxb6 {[%emt 0:00:03]} Kxg4 {[%emt 0:00:10]} 53. Rxa6 {[%emt 0:01:32]} h5 {[%emt 0:00:09]} 54. Rh6 {[%emt 0:00:23]} Kg5 {[%emt 0:00:19]} 55. Rh8 {[%emt 0:00:11]} Kg6 {[%emt 0:00:17]} 56. a4 {[%emt 0:03:56]} Kg7 {[%emt 0:00:20]} 57. Re8 {[%emt 0:00:10]} h4 {[%emt 0:00:52]} 58. a5 {[%emt 0:01:04]} Rf2 {[%emt 0:01:00]} 59. a6 {[%emt 0:00:26]} Rf7 {[%emt 0:00:29]} 60. Nb5 {[%emt 0:00:37]} h3 {[%emt 0:00:18]} 61. a7 {[%emt 0:01:09]} 1-0

[Event "EYCC Open-U12 2019"]
[Site "Bratislava"]
[Date "2019.08.08"]
[Round "7.25"]
[White "Foerster-Yialamas, Lucas"]
[Black "Nemsadze, Daviti"]
[Result "0-1"]
[ECO "B67"]
[WhiteElo "2028"]
[BlackElo "1794"]
[Annotator "NA"]
[PlyCount "70"]
[EventDate "2019.08.02"]
[EventType "swiss"]
[EventCountry "SVK"]
[SourceTitle "playchess.com"]
[Source "ChessBase"]
[SourceQuality "1"]
[TimeControl "40/5400+30:1800+30"]

1. e4 {[%emt 0:00:00]} c5 {[%emt 0:00:00]} 2. Nf3 {[%emt 0:00:17]} d6 {[%emt 0:00:00]} 3. d4 {[%emt 0:00:07]} cxd4 {[%emt 0:00:00]} 4. Nxd4 {[%emt 0:00:09]} Nf6 {[%emt 0:00:00]} 5. Nc3 {[%emt 0:00:14]} Nc6 {[%emt 0:00:00]} 6. Bg5 {[%emt 0:00:40]} e6 {[%emt 0:00:00]} 7. Qd2 {[%emt 0:00:23]} a6 {[%emt 0:00:01]} 8. O-O-O {[%emt 0:01:55]} Bd7 {[%emt 0:00:05]} 9. f4 {[%emt 0:04:43]} b5 {[%emt 0:01:18]} 10. Re1 {[%emt 0:20:42]} b4 {[%emt 0:04:45]} 11. Nxc6 {[%emt 0:00:32]} bxc3 {[%emt 0:06:30]} 12. Qxc3 {[%emt 0:00:09]} Qb6 {[%emt 0:00:12]} 13. Bxf6 {[%emt 0:12:35]} gxf6 {[%emt 0:00:35]} 14. Nb4 {[%emt 0:01:59]} Rc8 {[%emt 0:05:20]} 15. Nd5 {[%emt 0:00:40]} exd5 {[%emt 0:19:20]} 16. exd5+ {[%emt 0:00:11]} Be7 {[%emt 0:00:19]} 17. Qxf6 {[%emt 0:00:59]} Rxc2+ {[%emt 0:00:31]} 18. Kxc2 {[%emt 0:00:27]} Qf2+ {[%emt 0:00:23]} 19. Kb3 {[%emt 0:00:24]} O-O {[%emt 0:12:12]} 20. Rxe7 {[%emt 0:00:20]} Rb8+ {[%emt 0:00:06]} 21. Kc3 {[%emt 0:06:29]} Qxb2+ {[%emt 0:00:08]} 22. Kd3 {[%emt 0:00:24]} Bb5+ {[%emt 0:00:07]} 23. Ke3 {[%emt 0:00:42]} Qxf6 {[%emt 0:00:03]} 24. Re4 {[%emt 0:00:25]} Bxf1 {[%emt 0:01:04]} 25. Rxf1 {[%emt 0:00:08]} Qc3+ {[%emt 0:00:18]} 26. Kf2 {[%emt 0:00:31]} Qc5+ {[%emt 0:00:03]} 27. Kg3 {[%emt 0:00:40]} Qxd5 {[%emt 0:00:06]} 28. Rfe1 {[%emt 0:00:07]} Rb2 {[%emt 0:00:12]} 29. f5 {[%emt 0:04:00]} Qxf5 {[%emt 0:00:43]} 30. Re8+ {[%emt 0:00:28]} Kg7 {[%emt 0:00:04]} 31. R1e3 {[%emt 0:01:15]} Qg5+ {[%emt 0:00:08]} 32. Kh3 {[%emt 0:00:34]} Qxg2+ {[%emt 0:00:06]} 33. Kh4 {[%emt 0:00:05]} Rb4+ {[%emt 0:00:04]} 34. R8e4 {[%emt 0:00:11]} Rxe4+ {[%emt 0:00:06]} 35. Rxe4 {[%emt 0:00:13]} Qxe4+ {[%emt 0:00:01]} 0-1

[Event "EYCC Open-U12 2019"]
[Site "Bratislava"]
[Date "2019.08.08"]
[Round "7.26"]
[White "Saveljev, Ivan"]
[Black "Hagner, Bennet"]
[Result "1-0"]
[ECO "C54"]
[WhiteElo "2040"]
[BlackElo "1831"]
[Annotator "NA"]
[PlyCount "61"]
[EventDate "2019.08.02"]
[EventType "swiss"]
[EventCountry "SVK"]
[SourceTitle "playchess.com"]
[Source "ChessBase"]
[SourceQuality "1"]
[TimeControl "40/5400+30:1800+30"]

1. e4 {[%emt 0:00:00]} e5 {[%emt 0:00:00]} 2. Nf3 {[%emt 0:00:00]} Nc6 {[%emt 0:00:00]} 3. Bc4 {[%emt 0:00:00]} Bc5 {[%emt 0:00:00]} 4. c3 {[%emt 0:00:00]} Nf6 {[%emt 0:00:00]} 5. d3 {[%emt 0:00:07]} d6 {[%emt 0:00:00]} 6. O-O {[%emt 0:00:22]} a5 {[%emt 0:00:05]} 7. Re1 {[%emt 0:07:06]} O-O {[%emt 0:00:34]} 8. Bg5 {[%emt 0:02:42]} h6 {[%emt 0:00:42]} 9. Bh4 {[%emt 0:00:19]} g5 {[%emt 0:01:04]} 10. Bg3 {[%emt 0:01:17]} Nh7 {[%emt 0:00:39]} 11. d4 {[%emt 0:14:05]} Bb6 {[%emt 0:00:43]} 12. h3 {[%emt 0:08:30]} g4 {[%emt 0:17:10]} 13. hxg4 {[%emt 0:05:02]} Bxg4 {[%emt 0:00:26]} 14. dxe5 {[%emt 0:07:23]} Ng5 {[%emt 0:02:21]} 15. exd6 {[%emt 0:08:32]} cxd6 {[%emt 0:12:33]} 16. Nbd2 {[%emt 0:04:54]} Re8 {[%emt 0:08:39]} 17. Qb3 {[%emt 0:07:25]} a4 {[%emt 0:01:56]} 18. Qc2 {[%emt 0:03:07]} Bxf3 {[%emt 0:03:27]} 19. Nxf3 {[%emt 0:01:00]} Nxf3+ {[%emt 0:00:23]} 20. gxf3 {[%emt 0:00:09]} Ne5 {[%emt 0:03:41]} 21. Be2 {[%emt 0:01:51]} Kh8 {[%emt 0:03:51]} 22. Kg2 {[%emt 0:01:48]} Rg8 {[%emt 0:01:01]} 23. Rh1 {[%emt 0:00:49]} Qf6 {[%emt 0:10:59]} 24. Qd2 {[%emt 0:03:26]} Rg6 {[%emt 0:04:44]} 25. Rh3 {[%emt 0:08:02]} Rag8 {[%emt 0:04:26]} 26. Rah1 {[%emt 0:00:33]} Kh7 {[%emt 0:00:37]} 27. f4 {[%emt 0:01:01]} Nc6 {[%emt 0:13:10]} 28. f5 {[%emt 0:00:33]} Rg5 {[%emt 0:00:12]} 29. Kf1 {[%emt 0:01:00]} d5 {[%emt 0:03:45]} 30. Qf4 {[%emt 0:01:50]} dxe4 {[%emt 0:02:29]} 31. Rxh6+ {[%emt 0:00:18]} 1-0

[Event "EYCC Open-U12 2019"]
[Site "Bratislava"]
[Date "2019.08.08"]
[Round "7.27"]
[White "Bialiauski, Artsiom"]
[Black "Tunsjo, Axel"]
[Result "1-0"]
[ECO "D37"]
[WhiteElo "1784"]
[BlackElo "2039"]
[Annotator "NA"]
[PlyCount "75"]
[EventDate "2019.08.02"]
[EventType "swiss"]
[EventCountry "SVK"]
[SourceTitle "playchess.com"]
[Source "ChessBase"]
[SourceQuality "1"]
[TimeControl "40/5400+30:1800+30"]

1. d4 {[%emt 0:00:00]} Nf6 {[%emt 0:00:00]} 2. c4 {[%emt 0:00:26]} e6 {[%emt 0:00:00]} 3. Nf3 {[%emt 0:01:22]} d5 {[%emt 0:00:23]} 4. Nc3 dxc4 {[%emt 0:01:05]} 5. e3 {[%emt 0:02:29]} a6 {[%emt 0:02:12]} 6. Bxc4 {[%emt 0:01:14]} b5 {[%emt 0:00:24]} 7. Bd3 {[%emt 0:03:07]} Bb7 {[%emt 0:00:12]} 8. O-O {[%emt 0:01:01]} Be7 {[%emt 0:00:25]} 9. Qe2 {[%emt 0:06:07]} Nbd7 {[%emt 0:04:22]} 10. Rd1 {[%emt 0:02:39]} O-O {[%emt 0:03:47]} 11. a3 {[%emt 0:01:40]} Rc8 {[%emt 0:02:13]} 12. Bc2 {[%emt 0:05:03]} c5 {[%emt 0:03:22]} 13. dxc5 {[%emt 0:08:21]} Bxc5 {[%emt 0:00:12]} 14. Bd2 {[%emt 0:06:41]} Qe7 {[%emt 0:04:47]} 15. Rac1 {[%emt 0:02:35]} Bxf3 {[%emt 0:20:25]} 16. Qxf3 {[%emt 0:02:39]} Ne5 {[%emt 0:00:07]} 17. Qe2 {[%emt 0:02:57]} Nc4 {[%emt 0:00:12]} 18. Rb1 {[%emt 0:05:18]} Nxd2 {[%emt 0:07:47]} 19. Qxd2 {[%emt 0:01:04]} Rfd8 {[%emt 0:00:20]} 20. Bd3 {[%emt 0:11:36]} e5 {[%emt 0:06:00]} 21. Qc2 {[%emt 0:06:09]} h5 {[%emt 0:05:23]} 22. h3 {[%emt 0:00:32]} Kf8 {[%emt 0:14:21]} 23. Rbc1 {[%emt 0:01:14]} Bxa3 {[%emt 0:03:08]} 24. Bf5 {[%emt 0:06:03]} Rxd1+ {[%emt 0:03:22]} 25. Rxd1 {[%emt 0:01:17]} Rc4 {[%emt 0:02:14]} 26. Bd3 {[%emt 0:03:07]} Rc6 {[%emt 0:05:09]} 27. bxa3 {[%emt 0:04:53]} Qc5 {[%emt 0:02:10]} 28. Nxb5 {[%emt 0:06:01]} Qxc2 {[%emt 0:00:33]} 29. Bxc2 {[%emt 0:00:05]} Rxc2 {[%emt 0:00:14]} 30. Nd6 {[%emt 0:00:35]} g6 {[%emt 0:00:33]} 31. Rb1 {[%emt 0:02:35]} Rc6 {[%emt 0:03:04]} 32. Nb7 {[%emt 0:00:29]} Ke7 {[%emt 0:02:18]} 33. Na5 Rc5 {[%emt 0:01:25]} 34. Rb7+ {[%emt 0:04:03]} Nd7 {[%emt 0:00:40]} 35. Nb3 {[%emt 0:00:34]} Rb5 {[%emt 0:00:06]} 36. Rxb5 {[%emt 0:00:07]} axb5 {[%emt 0:00:06]} 37. Kf1 {[%emt 0:00:32]} Nb6 {[%emt 0:00:09]} 38. Nd2 {[%emt 0:00:58]} 1-0